Workbook

Sheet Biomass Sorghum Budget
A2: You can change the cells highlighted in yellow to match your specific operation. Columns E & F Autopopulate based on these numbers
A4: Biomass Sorghum Production Budget , No-Till, Non-Irrigated
A6: Yield (BDT/Acre) | B6: 7
A8: Establishment | C8: Unit | D8: Quantity | E8: Price | F8: $/acre | G8: $/BDT
A9: Inputs
A10: Land Rent | C10: acre | D10: 1 | E10: 75 | F10: =D10*E10 -> 75 | G10: =F10/B6 -> 10.71428571
A11: Seed1 | B11: NX4264 | C11: bag | D11: 1 | E11: 225 | F11: =E11/C53 -> 25.71428571 | G11: =F11/B6 -> 3.673469388
A12: Nitrogen | C12: lbs | D12: 120 | E12: 0.44 | F12: =D12*E12 -> 52.8 | G12: =F12/B6 -> 7.542857143
A13: Phosphorous2 | C13: lbs | D13: 65 | E13: 0.4 | F13: 26 | G13: =F13/B6 -> 3.714285714
A14: Potassium2 | C14: lbs | D14: 120 | E14: 0.32 | F14: 38.4 | G14: =F14/B6 -> 5.485714286
A15: Lime3 (lbs) | C15: ton | D15: 1 | E15: 30 | F15: =(D15*E15)*0.5 -> 15 | G15: =F15/B6 -> 2.142857143
A16: Herbicide | B16: Preplant | C16: qt. | D16: 1 | E16: 4.88 | F16: 4.88 | G16: =F16/B6 -> 0.6971428571
A17: Herbicide-Pre-Emerge | B17: Bicep II Magnum (qts) | C17: qt. | D17: 2.1 | E17: 12.62 | F17: 26.502 | G17: =F17/B6 -> 3.786
A18: Herbicide-Pre-Emerge | B18: Surfactant - COC | D18: 2 | E18: 1.5 | F18: 3 | G18: =F18/B6 -> 0.4285714286
A20: Equipment Operations
A21: Planting | D21: 1 | E21: 8.12 | F21: =D21*E21 -> 8.12 | G21: =F21/B6 -> 1.16
A22: Fertilizer Application | D22: 1 | E22: 5 | F22: 5 | G22: =F22/B6 -> 0.7142857143
A23: Herbicide Application | D23: 2 | E23: 5 | F23: 10 | G23: =F23/B6 -> 1.428571429
E25: Subtotal | F25: =SUM(F10:F23) -> 290.4162857 | G25: =SUM(G10:G23) -> 41.48804082
A27: Harvesting
A28: Equipment Operations
A29: Swathing | F29: 22.31 | G29: =Table23[[#This Row],[Column5]]/B6 -> 3.187142857
A30: Raking | F30: 19.45 | G30: =Table23[[#This Row],[Column5]]/B6 -> 2.778571429
A31: Baling | F31: 108.72 | G31: =Table23[[#This Row],[Column5]]/B6 -> 15.53142857
A32: Bale Staging | F32: 44.52 | G32: =Table23[[#This Row],[Column5]]/B6 -> 6.36
A33: Bale Loading4 | F33: 22.13 | G33: =Table23[[#This Row],[Column5]]/B6 -> 3.161428571
E35: Subtotal | F35: =SUM(F29:F33) -> 217.13 | G35: =SUM(G29:G33) -> 31.01857143
E37: Total Production Cost | F37: =SUM(F25,F35) -> 507.5462857 | G37: =SUM(G25,G35) -> 72.50661224
A39: Footnotes
A40: 1) One 50 lb. bag of seed is expected to plant roughly 8.75 acres. Will vary from year to year based on information from seed label. Seed Rate Multiplier table can be used to ammend this variable.
A42: 2) If soil test indicates "High" for Phosphorous or Potassium these rates can be decreased by 50%.
A43: 3) Assumed application once every four years at 2 tons per acre. Prorated yearly cost provided. Application costs included.
A44: 4) Can be removed if Genera is hauling bales.
A46: Seed Rate Multiplier
A48: Description | B48: Unit | C48: Quantity
A49: Bag of Seed | B49: lbs | C49: 50
A50: Seeds per lb | C50: 14000
A51: Planting Density | B51: Seeds/ Acre | C51: 80000
A53: Acres per Bag | C53: =(C49*C50)/C51 -> 8.75
A55: Copyright 2020
A56: Genera Inc.
